[Event "Titled Tuesday Blitz March 29 Early 2022"]
[White "Martin, Lewis"]
[Black "parintele_chess"]
[WhiteFideId "410551"]
[WhiteElo "2145"]
[BlackElo "2248"]
[Result "1/2-1/2"]
[Round "08"]
[TimeControl "180+1"]
[Date "2022.03.30"]
[WhiteClock "0:00:13"]
[BlackClock "0:00:04"]

1. e4 {[%clk 0:03:00]}  c6 {[%clk 0:02:40]} 2. d4 {[%clk 0:03:00]}  d5 {[%clk 0:02:34]} 3. Nc3 {[%clk 0:03:00]}  dxe4 {[%clk 0:02:23]} 4. Nxe4 {[%clk 0:03:01]}  Nf6 {[%clk 0:02:24]} 5. Nxf6+ {[%clk 0:03:00]}  gxf6 {[%clk 0:02:25]} 6. c3 {[%clk 0:03:00]}  Bf5 {[%clk 0:02:23]} 7. Bd3 {[%clk 0:02:43]}  Bxd3 {[%clk 0:02:22]} 8. Qxd3 {[%clk 0:02:44]}  e6 {[%clk 0:02:23]} 9. Bf4 {[%clk 0:02:41]}  Bd6 {[%clk 0:02:22]} 10. Ne2 {[%clk 0:02:38]}  Bxf4 {[%clk 0:02:10]} 11. Nxf4 {[%clk 0:02:37]}  Qd6 {[%clk 0:02:05]} 12. Qe3 {[%clk 0:02:29]}  Nd7 {[%clk 0:02:04]} 13. O-O-O {[%clk 0:02:27]}  O-O-O {[%clk 0:01:59]} 14. g3 {[%clk 0:02:20]}  Nb6 {[%clk 0:01:57]} 15. Qe2 {[%clk 0:02:14]}  Nd5 {[%clk 0:01:56]} 16. Nd3 {[%clk 0:02:11]}  b6 {[%clk 0:01:45]} 17. f4 {[%clk 0:02:09]}  Kb7 {[%clk 0:01:43]} 18. Rhe1 {[%clk 0:02:08]}  h5 {[%clk 0:01:36]} 19. a3 {[%clk 0:02:03]}  h4 {[%clk 0:01:30]} 20. f5 {[%clk 0:02:00]}  exf5 {[%clk 0:01:22]} 21. c4 {[%clk 0:01:59]}  Nc7 {[%clk 0:01:22]} 22. Nf4 {[%clk 0:01:49]}  hxg3 {[%clk 0:01:20]} 23. hxg3 {[%clk 0:01:50]}  Rhe8 {[%clk 0:01:18]} 24. c5 {[%clk 0:01:34]}  Rxe2 {[%clk 0:01:03]} 25. cxd6 {[%clk 0:01:33]}  Rxe1 {[%clk 0:01:02]} 26. Rxe1 {[%clk 0:01:32]}  Rxd6 {[%clk 0:01:02]} 27. Re7 {[%clk 0:01:29]}  Rxd4 {[%clk 0:00:56]} 28. Rxf7 {[%clk 0:01:29]}  Rd6 {[%clk 0:00:45]} 29. Nh5 {[%clk 0:01:23]}  Kc8 {[%clk 0:00:39]} 30. Nxf6 {[%clk 0:01:20]}  Rd3 {[%clk 0:00:34]} 31. Nh5 {[%clk 0:01:19]}  Rd5 {[%clk 0:00:28]} 32. Ng7 {[%clk 0:01:13]}  Kb8 {[%clk 0:00:18]} 33. Nxf5 {[%clk 0:01:10]}  Ne6 {[%clk 0:00:16]} 34. g4 {[%clk 0:01:04]}  Nd4 {[%clk 0:00:16]} 35. Ne3 {[%clk 0:00:56]}  Rg5 {[%clk 0:00:15]} 36. Kd2 {[%clk 0:00:50]}  c5 {[%clk 0:00:11]} 37. b4 {[%clk 0:00:48]}  cxb4 {[%clk 0:00:10]} 38. axb4 {[%clk 0:00:48]}  Nc6 {[%clk 0:00:10]} 39. Kc3 {[%clk 0:00:45]}  Ne5 {[%clk 0:00:10]} 40. Rf4 {[%clk 0:00:36]}  a5 {[%clk 0:00:08]} 41. bxa5 {[%clk 0:00:33]}  bxa5 {[%clk 0:00:09]} 42. Kb3 {[%clk 0:00:31]}  Kc7 {[%clk 0:00:09]} 43. Ka4 {[%clk 0:00:31]}  Kd6 {[%clk 0:00:09]} 44. Rd4+ {[%clk 0:00:27]}  Ke6 {[%clk 0:00:08]} 45. Re4 {[%clk 0:00:26]}  Kf6 {[%clk 0:00:08]} 46. Nd5+ {[%clk 0:00:23]}  Kg6 {[%clk 0:00:06]} 47. Ne3 {[%clk 0:00:17]}  Kf6 {[%clk 0:00:04]} 48. Rf4+ {[%clk 0:00:16]}  Kg6 {[%clk 0:00:04]} 49. Re4 {[%clk 0:00:13]}  Kf6 {[%clk 0:00:04]} 1/2-1/2


[Site "https://www.chess.com"]

[Event "Titled Tuesday Blitz March 29 Early 2022"]
[White "Melikhov, Evgeny V."]
[Black "Ljukin, Sergei"]
[WhiteFideId "4122046"]
[BlackFideId "14102200"]
[WhiteElo "1945"]
[BlackElo "2312"]
[Result "0-1"]
[Round "08"]
[TimeControl "180+1"]
[Date "2022.03.30"]
[WhiteClock "0:00:38"]
[BlackClock "0:00:53"]

1. d4 {[%clk 0:03:00]}  d5 {[%clk 0:02:59]} 2. c4 {[%clk 0:03:00]}  c6 {[%clk 0:02:59]} 3. Nc3 {[%clk 0:03:00]}  Nf6 {[%clk 0:03:00]} 4. e3 {[%clk 0:03:00]}  e6 {[%clk 0:03:00]} 5. Nf3 {[%clk 0:02:59]}  Nbd7 {[%clk 0:02:59]} 6. Bd3 {[%clk 0:02:59]}  dxc4 {[%clk 0:02:59]} 7. Bxc4 {[%clk 0:02:59]}  b5 {[%clk 0:02:59]} 8. Bd3 {[%clk 0:02:59]}  a6 {[%clk 0:02:59]} 9. e4 {[%clk 0:02:59]}  c5 {[%clk 0:02:59]} 10. d5 {[%clk 0:02:57]}  c4 {[%clk 0:02:58]} 11. Bc2 {[%clk 0:02:57]}  Bb7 {[%clk 0:02:54]} 12. O-O {[%clk 0:02:55]}  e5 {[%clk 0:02:46]} 13. a4 {[%clk 0:02:40]}  b4 {[%clk 0:02:43]} 14. Ne2 {[%clk 0:02:40]}  a5 {[%clk 0:02:35]} 15. Ng3 {[%clk 0:02:33]}  g6 {[%clk 0:02:29]} 16. Bg5 {[%clk 0:02:28]}  h6 {[%clk 0:02:29]} 17. Bxf6 {[%clk 0:02:27]}  Qxf6 {[%clk 0:02:29]} 18. b3 {[%clk 0:02:16]}  c3 {[%clk 0:02:27]} 19. Bd3 {[%clk 0:02:14]}  Bd6 {[%clk 0:02:12]} 20. Bb5 {[%clk 0:02:10]}  Qe7 {[%clk 0:02:12]} 21. Ne1 {[%clk 0:02:06]}  O-O {[%clk 0:02:10]} 22. Bxd7 {[%clk 0:02:06]}  Qxd7 {[%clk 0:02:09]} 23. Nc2 {[%clk 0:02:06]}  f5 {[%clk 0:02:08]} 24. exf5 {[%clk 0:02:03]}  gxf5 {[%clk 0:02:08]} 25. Qh5 {[%clk 0:02:01]}  Kh7 {[%clk 0:02:06]} 26. Rad1 {[%clk 0:01:57]}  Qf7 {[%clk 0:02:05]} 27. Qe2 {[%clk 0:01:41]}  Ba6 {[%clk 0:01:54]} 28. Qf3 {[%clk 0:01:33]}  Bxf1 {[%clk 0:01:51]} 29. Nxf1 {[%clk 0:01:28]}  Rad8 {[%clk 0:01:41]} 30. Qd3 {[%clk 0:01:25]}  Rd7 {[%clk 0:01:20]} 31. Qb5 {[%clk 0:01:23]}  Bc7 {[%clk 0:01:08]} 32. Nfe3 {[%clk 0:01:17]}  Rfd8 {[%clk 0:01:07]} 33. g3 {[%clk 0:01:03]}  f4 {[%clk 0:01:06]} 34. Qd3+ {[%clk 0:00:57]}  Qg6 {[%clk 0:01:05]} 35. Qxg6+ {[%clk 0:00:49]}  Kxg6 {[%clk 0:01:05]} 36. Nc4 {[%clk 0:00:41]}  Rxd5 {[%clk 0:01:02]} 37. Re1 {[%clk 0:00:41]}  Rd1 {[%clk 0:00:56]} 38. Kg2 {[%clk 0:00:39]}  Rxe1 {[%clk 0:00:55]} 39. Nxe1 {[%clk 0:00:39]}  Rd1 {[%clk 0:00:53]} 40. Nc2 {[%clk 0:00:38]}  Rc1 {[%clk 0:00:53]} 0-1


[Site "https://www.chess.com"]

[Event "Titled Tuesday Blitz March 29 Early 2022"]
[White "Migot, Tangi"]
[Black "Hernandez Jimenez, Alexander Andres"]
[WhiteFideId "662445"]
[BlackFideId "3900452"]
[WhiteElo "2515"]
[BlackElo "2082"]
[Result "1-0"]
[Round "08"]
[TimeControl "180+1"]
[Date "2022.03.30"]
[WhiteClock "0:00:45"]
[BlackClock "0:00:10"]

1. d4 {[%clk 0:03:00]}  Nf6 {[%clk 0:02:59]} 2. Nf3 {[%clk 0:03:00]}  d5 {[%clk 0:02:58]} 3. Bf4 {[%clk 0:03:00]}  e6 {[%clk 0:02:58]} 4. e3 {[%clk 0:03:00]}  Be7 {[%clk 0:02:57]} 5. c4 {[%clk 0:02:59]}  O-O {[%clk 0:02:57]} 6. Nc3 {[%clk 0:02:59]}  b6 {[%clk 0:02:56]} 7. cxd5 {[%clk 0:02:59]}  Nxd5 {[%clk 0:02:55]} 8. Nxd5 {[%clk 0:02:59]}  exd5 {[%clk 0:02:55]} 9. Qb3 {[%clk 0:02:57]}  Be6 {[%clk 0:02:53]} 10. Be2 {[%clk 0:02:56]}  c5 {[%clk 0:02:48]} 11. dxc5 {[%clk 0:02:55]}  bxc5 {[%clk 0:02:44]} 12. O-O {[%clk 0:02:56]}  Nd7 {[%clk 0:02:33]} 13. Rfd1 {[%clk 0:02:53]}  Qb6 {[%clk 0:02:32]} 14. Qc2 {[%clk 0:02:47]}  Rac8 {[%clk 0:02:27]} 15. Rab1 {[%clk 0:02:46]}  Rfd8 {[%clk 0:02:14]} 16. Ng5 {[%clk 0:02:42]}  Nf6 {[%clk 0:02:12]} 17. Nxe6 {[%clk 0:02:40]}  fxe6 {[%clk 0:02:12]} 18. b3 {[%clk 0:02:30]}  d4 {[%clk 0:02:03]} 19. Bc4 {[%clk 0:02:25]}  Nd5 {[%clk 0:02:02]} 20. Bxd5 {[%clk 0:02:12]}  exd5 {[%clk 0:01:55]} 21. exd4 {[%clk 0:02:11]}  cxd4 {[%clk 0:01:53]} 22. Qf5 {[%clk 0:02:05]}  Bf6 {[%clk 0:01:50]} 23. Be5 {[%clk 0:02:03]}  Bxe5 {[%clk 0:01:39]} 24. Qxe5 {[%clk 0:02:03]}  Rc2 {[%clk 0:01:35]} 25. Qxd4 {[%clk 0:01:53]}  Qxd4 {[%clk 0:01:33]} 26. Rxd4 {[%clk 0:01:53]}  Rxa2 {[%clk 0:01:34]} 27. g3 {[%clk 0:01:37]}  Rf8 {[%clk 0:01:25]} 28. Rf1 {[%clk 0:01:36]}  Rf5 {[%clk 0:01:22]} 29. b4 {[%clk 0:01:27]}  Rb2 {[%clk 0:01:19]} 30. g4 {[%clk 0:01:20]}  Re5 {[%clk 0:01:12]} 31. Ra1 {[%clk 0:01:11]}  g5 {[%clk 0:00:52]} 32. Rxa7 {[%clk 0:01:08]}  Re1+ {[%clk 0:00:51]} 33. Kg2 {[%clk 0:01:07]}  Ree2 {[%clk 0:00:51]} 34. Rxd5 {[%clk 0:01:01]}  Rxf2+ {[%clk 0:00:51]} 35. Kg1 {[%clk 0:01:02]}  Rg2+ {[%clk 0:00:49]} 36. Kf1 {[%clk 0:01:02]}  Rgf2+ {[%clk 0:00:25]} 37. Ke1 {[%clk 0:01:02]}  Rbe2+ {[%clk 0:00:23]} 38. Kd1 {[%clk 0:01:01]}  Re8 {[%clk 0:00:17]} 39. Rxg5+ {[%clk 0:01:00]}  Kh8 {[%clk 0:00:15]} 40. Rh5 {[%clk 0:00:55]}  Rd8+ {[%clk 0:00:12]} 41. Ke1 {[%clk 0:00:52]}  Rb2 {[%clk 0:00:10]} 42. Raxh7+ {[%clk 0:00:45]} 1-0


[Site "https://www.chess.com"]

[Event "Titled Tuesday Blitz March 29 Early 2022"]
[White "Mikhalsky, Vladimir"]
[Black "Ardila, Oscar Humberto"]
[WhiteFideId "14144352"]
[BlackFideId "4404742"]
[WhiteElo "2301"]
[BlackElo "1966"]
[Result "1-0"]
[Round "08"]
[TimeControl "180+1"]
[Date "2022.03.30"]
[WhiteClock "0:01:08"]
[BlackClock "0:00:19"]

1. c4 {[%clk 0:02:54]}  Nf6 {[%clk 0:02:59]} 2. Nc3 {[%clk 0:02:51]}  e6 {[%clk 0:02:57]} 3. e4 {[%clk 0:02:49]}  d6 {[%clk 0:02:56]} 4. d4 {[%clk 0:02:48]}  Be7 {[%clk 0:02:56]} 5. f4 {[%clk 0:02:47]}  c5 {[%clk 0:02:54]} 6. d5 {[%clk 0:02:46]}  exd5 {[%clk 0:02:54]} 7. cxd5 {[%clk 0:02:45]}  O-O {[%clk 0:02:53]} 8. Nf3 {[%clk 0:02:44]}  b5 {[%clk 0:02:52]} 9. Bxb5 {[%clk 0:02:42]}  Bd7 {[%clk 0:02:32]} 10. e5 {[%clk 0:02:32]}  Ne8 {[%clk 0:02:24]} 11. O-O {[%clk 0:02:28]}  Bxb5 {[%clk 0:02:19]} 12. Nxb5 {[%clk 0:02:27]}  Qb6 {[%clk 0:02:19]} 13. Nc3 {[%clk 0:02:19]}  c4+ {[%clk 0:02:19]} 14. Kh1 {[%clk 0:02:18]}  Nd7 {[%clk 0:02:16]} 15. Qe2 {[%clk 0:02:07]}  Rc8 {[%clk 0:02:01]} 16. Be3 {[%clk 0:02:06]}  Qb7 {[%clk 0:01:59]} 17. Bd4 {[%clk 0:01:58]}  Nb6 {[%clk 0:01:56]} 18. Qe4 {[%clk 0:01:53]}  Nc7 {[%clk 0:01:13]} 19. exd6 {[%clk 0:01:40]}  Bxd6 {[%clk 0:01:12]} 20. Ng5 {[%clk 0:01:34]}  f5 {[%clk 0:01:02]} 21. Qf3 {[%clk 0:01:30]}  Nbxd5 {[%clk 0:00:59]} 22. Qh5 {[%clk 0:01:26]}  h6 {[%clk 0:00:54]} 23. Qg6 {[%clk 0:01:22]}  Nf6 {[%clk 0:00:26]} 24. Bxf6 {[%clk 0:01:19]}  Rxf6 {[%clk 0:00:24]} 25. Qh7+ {[%clk 0:01:17]}  Kf8 {[%clk 0:00:24]} 26. Qh8+ {[%clk 0:01:15]}  Ke7 {[%clk 0:00:24]} 27. Qxg7+ {[%clk 0:01:14]}  Kd8 {[%clk 0:00:19]} 28. Qxf6+ {[%clk 0:01:12]}  Be7 {[%clk 0:00:19]} 29. Rad1+ {[%clk 0:01:09]}  Ke8 {[%clk 0:00:19]} 30. Qf7# {[%clk 0:01:08]} 1-0


[Site "https://www.chess.com"]

[Event "Titled Tuesday Blitz March 29 Early 2022"]
[White "Muradov, Soltan"]
[Black "Cramling Bellon, Anna"]
[WhiteFideId "14002108"]
[BlackFideId "32009232"]
[WhiteElo "1854"]
[BlackElo "1905"]
[Result "1-0"]
[Round "08"]
[TimeControl "180+1"]
[Date "2022.03.30"]
[WhiteClock "0:00:23"]
[BlackClock "0:00:02"]

1. Nf3 {[%clk 0:03:00]}  d5 {[%clk 0:02:56]} 2. b3 {[%clk 0:02:58]}  c5 {[%clk 0:02:55]} 3. e3 {[%clk 0:02:55]}  Nc6 {[%clk 0:02:55]} 4. d3 {[%clk 0:02:54]}  e5 {[%clk 0:02:52]} 5. Bb2 {[%clk 0:02:46]}  Qc7 {[%clk 0:02:45]} 6. Be2 {[%clk 0:02:33]}  Nf6 {[%clk 0:02:44]} 7. O-O {[%clk 0:02:27]}  Be7 {[%clk 0:02:41]} 8. Nbd2 {[%clk 0:02:27]}  O-O {[%clk 0:02:40]} 9. a3 {[%clk 0:02:17]}  e4 {[%clk 0:02:33]} 10. Ne1 {[%clk 0:02:04]}  Be6 {[%clk 0:02:24]} 11. c4 {[%clk 0:01:44]}  exd3 {[%clk 0:01:56]} 12. Bxd3 {[%clk 0:01:43]}  Rfd8 {[%clk 0:01:50]} 13. Qe2 {[%clk 0:01:41]}  Ne5 {[%clk 0:01:35]} 14. Bxe5 {[%clk 0:01:30]}  Qxe5 {[%clk 0:01:35]} 15. Nef3 {[%clk 0:01:31]}  Qh5 {[%clk 0:01:22]} 16. Rad1 {[%clk 0:01:15]}  dxc4 {[%clk 0:01:05]} 17. Bxc4 {[%clk 0:01:09]}  Bg4 {[%clk 0:01:05]} 18. h3 {[%clk 0:01:09]}  Bxf3 {[%clk 0:00:36]} 19. Nxf3 {[%clk 0:01:10]}  Ne4 {[%clk 0:00:36]} 20. Qc2 {[%clk 0:00:51]}  Qf5 {[%clk 0:00:15]} 21. Rxd8+ {[%clk 0:00:46]}  Rxd8 {[%clk 0:00:14]} 22. Bd3 {[%clk 0:00:35]}  Rxd3 {[%clk 0:00:06]} 23. Qxd3 {[%clk 0:00:36]}  h5 {[%clk 0:00:05]} 24. Rd1 {[%clk 0:00:30]}  g6 {[%clk 0:00:02]} 25. Qd7 {[%clk 0:00:25]}  Bf6 {[%clk 0:00:02]} 26. Qxf5 {[%clk 0:00:24]}  gxf5 {[%clk 0:00:01]} 27. Rd5 {[%clk 0:00:23]}  Nc3 {[%clk 0:00:02]} 28. Rxf5 {[%clk 0:00:23]}  Nd5 {[%clk 0:00:01]} 29. Rxd5 {[%clk 0:00:23]}  Bb2 {[%clk 0:00:02]} 1-0


[Site "https://www.chess.com"]

[Event "Titled Tuesday Blitz March 29 Early 2022"]
[White "Obolentseva, Alexandra"]
[Black "Pourkashiyan, Atousa"]
[WhiteFideId "24153648"]
[BlackFideId "12502014"]
[WhiteElo "2113"]
[BlackElo "2247"]
[Result "0-1"]
[Round "08"]
[TimeControl "180+1"]
[Date "2022.03.30"]
[WhiteClock "0:00:14"]
[BlackClock "0:00:17"]

1. d4 {[%clk 0:03:00]}  Nf6 {[%clk 0:02:59]} 2. c4 {[%clk 0:02:56]}  e6 {[%clk 0:02:54]} 3. Nf3 {[%clk 0:02:43]}  d5 {[%clk 0:02:45]} 4. g3 {[%clk 0:02:37]}  Bb4+ {[%clk 0:02:42]} 5. Bd2 {[%clk 0:02:36]}  Be7 {[%clk 0:02:38]} 6. Bg2 {[%clk 0:02:36]}  O-O {[%clk 0:02:38]} 7. O-O {[%clk 0:02:35]}  c6 {[%clk 0:02:39]} 8. Nc3 {[%clk 0:02:35]}  Nbd7 {[%clk 0:02:39]} 9. b3 {[%clk 0:02:20]}  b6 {[%clk 0:02:39]} 10. Qc2 {[%clk 0:02:20]}  Ba6 {[%clk 0:02:39]} 11. Nd1 {[%clk 0:01:57]}  Rc8 {[%clk 0:02:39]} 12. Ne3 {[%clk 0:01:56]}  c5 {[%clk 0:02:38]} 13. dxc5 {[%clk 0:01:53]}  Nxc5 {[%clk 0:02:36]} 14. Rfd1 {[%clk 0:01:48]}  Nce4 {[%clk 0:02:32]} 15. Be1 {[%clk 0:01:42]}  Qc7 {[%clk 0:02:32]} 16. Nd4 {[%clk 0:01:26]}  Bc5 {[%clk 0:02:12]} 17. cxd5 {[%clk 0:01:17]}  exd5 {[%clk 0:02:05]} 18. Rac1 {[%clk 0:01:12]}  Qe5 {[%clk 0:02:02]} 19. Nf3 {[%clk 0:01:09]}  Qh5 {[%clk 0:01:54]} 20. Qb2 {[%clk 0:01:02]}  Bxe3 {[%clk 0:01:47]} 21. fxe3 {[%clk 0:01:03]}  Ng4 {[%clk 0:01:47]} 22. Rxc8 {[%clk 0:00:45]}  Rxc8 {[%clk 0:01:45]} 23. Qd4 {[%clk 0:00:45]}  Bxe2 {[%clk 0:00:46]} 24. Qxd5 {[%clk 0:00:45]}  Qxd5 {[%clk 0:00:47]} 25. Rxd5 {[%clk 0:00:46]}  h6 {[%clk 0:00:47]} 26. Rd4 {[%clk 0:00:39]}  f5 {[%clk 0:00:46]} 27. Bd2 {[%clk 0:00:27]}  Rc2 {[%clk 0:00:44]} 28. h3 {[%clk 0:00:27]}  Bxf3 {[%clk 0:00:43]} 29. Bxf3 {[%clk 0:00:25]}  Nxd2 {[%clk 0:00:43]} 30. Bd5+ {[%clk 0:00:25]}  Kf8 {[%clk 0:00:38]} 31. hxg4 {[%clk 0:00:26]}  fxg4 {[%clk 0:00:36]} 32. Rf4+ {[%clk 0:00:16]}  Ke7 {[%clk 0:00:36]} 33. Rf2 {[%clk 0:00:16]}  Rxa2 {[%clk 0:00:32]} 34. Kg2 {[%clk 0:00:16]}  Rb2 {[%clk 0:00:30]} 35. e4 {[%clk 0:00:15]}  Kd6 {[%clk 0:00:30]} 36. Re2 {[%clk 0:00:13]}  a5 {[%clk 0:00:29]} 37. Rf2 {[%clk 0:00:13]}  Ke5 {[%clk 0:00:29]} 38. Rf5+ {[%clk 0:00:09]}  Kd4 {[%clk 0:00:28]} 39. Rf2 {[%clk 0:00:09]}  b5 {[%clk 0:00:27]} 40. Bc6 {[%clk 0:00:09]}  Kc5 {[%clk 0:00:24]} 41. Bd5 {[%clk 0:00:08]}  a4 {[%clk 0:00:24]} 42. bxa4 {[%clk 0:00:09]}  bxa4 {[%clk 0:00:25]} 43. Bg8 {[%clk 0:00:06]}  a3 {[%clk 0:00:25]} 44. e5 {[%clk 0:00:06]}  Nf3 {[%clk 0:00:18]} 45. e6 {[%clk 0:00:05]}  Rxf2+ {[%clk 0:00:13]} 46. Kxf2 {[%clk 0:00:06]}  Kd6 {[%clk 0:00:13]} 47. e7 {[%clk 0:00:05]}  Kxe7 {[%clk 0:00:14]} 48. Ke3 {[%clk 0:00:06]}  Kf6 {[%clk 0:00:14]} 49. Kf4 {[%clk 0:00:06]}  h5 {[%clk 0:00:14]} 50. Ba2 {[%clk 0:00:06]}  g5+ {[%clk 0:00:14]} 51. Ke4 {[%clk 0:00:06]}  Nd2+ {[%clk 0:00:13]} 52. Kd3 {[%clk 0:00:07]}  Nf1 {[%clk 0:00:14]} 53. Ke2 {[%clk 0:00:07]}  Nxg3+ {[%clk 0:00:14]} 54. Kf2 {[%clk 0:00:08]}  Nf5 {[%clk 0:00:14]} 55. Kg2 {[%clk 0:00:08]}  g3 {[%clk 0:00:15]} 56. Kh3 {[%clk 0:00:09]}  h4 {[%clk 0:00:15]} 57. Kg4 {[%clk 0:00:09]}  Nd4 {[%clk 0:00:15]} 58. Bc4 {[%clk 0:00:09]}  Nc2 {[%clk 0:00:16]} 59. Bb3 {[%clk 0:00:08]}  Nb4 {[%clk 0:00:16]} 60. Kh3 {[%clk 0:00:09]}  a2 {[%clk 0:00:17]} 61. Bxa2 {[%clk 0:00:05]}  Nxa2 {[%clk 0:00:18]} 62. Kg2 {[%clk 0:00:05]}  Nc3 {[%clk 0:00:18]} 63. Kh3 {[%clk 0:00:06]}  Nd5 {[%clk 0:00:18]} 64. Kg2 {[%clk 0:00:07]}  Nf4+ {[%clk 0:00:19]} 65. Kg1 {[%clk 0:00:08]}  h3 {[%clk 0:00:19]} 66. Kh1 {[%clk 0:00:09]}  Kf5 {[%clk 0:00:19]} 67. Kg1 {[%clk 0:00:10]}  Kg4 {[%clk 0:00:18]} 68. Kh1 {[%clk 0:00:10]}  Nd5 {[%clk 0:00:18]} 69. Kg1 {[%clk 0:00:11]}  Kf3 {[%clk 0:00:17]} 70. Kh1 {[%clk 0:00:12]}  g2+ {[%clk 0:00:17]} 71. Kg1 {[%clk 0:00:13]}  Ke3 {[%clk 0:00:16]} 72. Kh2 {[%clk 0:00:14]}  Kf2 {[%clk 0:00:16]} 73. Kxh3 {[%clk 0:00:13]}  g4+ {[%clk 0:00:16]} 74. Kh4 {[%clk 0:00:12]}  g1=Q {[%clk 0:00:16]} 75. Kg5 {[%clk 0:00:12]}  g3 {[%clk 0:00:16]} 76. Kf5 {[%clk 0:00:13]}  g2 {[%clk 0:00:16]} 77. Ke6 {[%clk 0:00:14]}  Ne3 {[%clk 0:00:17]} 0-1


[Site "https://www.chess.com"]

[Event "Titled Tuesday Blitz March 29 Early 2022"]
[White "Omariev, Maksim"]
[Black "Gaehwiler, Gabriel"]
[WhiteFideId "4193423"]
[BlackFideId "1314530"]
[WhiteElo "2526"]
[BlackElo "2383"]
[Result "0-1"]
[Round "08"]
[TimeControl "180+1"]
[Date "2022.03.30"]
[WhiteClock "0:00:01"]
[BlackClock "0:00:16"]

1. g4 {[%clk 0:03:00]}  d5 {[%clk 0:02:59]} 2. Bg2 {[%clk 0:03:01]}  c6 {[%clk 0:02:59]} 3. h3 {[%clk 0:03:01]}  e5 {[%clk 0:02:58]} 4. d4 {[%clk 0:03:01]}  e4 {[%clk 0:02:57]} 5. c4 {[%clk 0:03:01]}  Bd6 {[%clk 0:02:50]} 6. Nc3 {[%clk 0:03:01]}  Ne7 {[%clk 0:02:49]} 7. Qb3 {[%clk 0:02:51]}  O-O {[%clk 0:02:42]} 8. Bg5 {[%clk 0:02:46]}  f6 {[%clk 0:02:34]} 9. cxd5 {[%clk 0:02:35]}  cxd5 {[%clk 0:02:13]} 10. Bd2 {[%clk 0:01:54]}  Nbc6 {[%clk 0:01:43]} 11. Nxd5 {[%clk 0:01:25]}  Be6 {[%clk 0:01:21]} 12. Nxe7+ {[%clk 0:01:17]}  Qxe7 {[%clk 0:01:17]} 13. d5 {[%clk 0:00:47]}  Bf7 {[%clk 0:01:16]} 14. Bc3 {[%clk 0:00:34]}  Nb4 {[%clk 0:01:10]} 15. O-O-O {[%clk 0:00:31]}  a5 {[%clk 0:01:06]} 16. Bxb4 {[%clk 0:00:26]}  axb4 {[%clk 0:01:04]} 17. Kb1 {[%clk 0:00:22]}  Ra5 {[%clk 0:01:03]} 18. f3 {[%clk 0:00:17]}  e3 {[%clk 0:00:57]} 19. f4 {[%clk 0:00:17]}  Rfa8 {[%clk 0:00:57]} 20. Nf3 {[%clk 0:00:15]}  Qe4+ {[%clk 0:00:35]} 21. Qd3 {[%clk 0:00:06]}  Qxd3+ {[%clk 0:00:33]} 22. Rxd3 {[%clk 0:00:06]}  Rxa2 {[%clk 0:00:34]} 23. Nd4 {[%clk 0:00:03]}  Bxf4 {[%clk 0:00:28]} 24. Kc2 {[%clk 0:00:02]}  R2a5 {[%clk 0:00:24]} 25. Nf5 {[%clk 0:00:02]}  Re8 {[%clk 0:00:17]} 26. Kb3 {[%clk 0:00:02]}  g6 {[%clk 0:00:17]} 27. Nd4 {[%clk 0:00:01]}  Bd6 {[%clk 0:00:16]} 28. Nf3 {[%clk 0:00:01]}  Rc5 {[%clk 0:00:16]} 0-1


[Site "https://www.chess.com"]

[Event "Titled Tuesday Blitz March 29 Early 2022"]
[White "Omelja, Artem"]
[Black "Kosteniuk, Alexandra"]
[WhiteFideId "14119846"]
[BlackFideId "4128125"]
[WhiteElo "2382"]
[BlackElo "2469"]
[Result "1-0"]
[Round "08"]
[TimeControl "180+1"]
[Date "2022.03.30"]
[WhiteClock "0:00:05"]
[BlackClock "0:00:10"]

1. d4 {[%clk 0:03:00]}  Nf6 {[%clk 0:02:59]} 2. c4 {[%clk 0:02:57]}  e6 {[%clk 0:02:57]} 3. Nf3 {[%clk 0:02:56]}  c5 {[%clk 0:02:55]} 4. d5 {[%clk 0:02:53]}  b5 {[%clk 0:02:55]} 5. dxe6 {[%clk 0:02:22]}  fxe6 {[%clk 0:02:54]} 6. cxb5 {[%clk 0:02:17]}  a6 {[%clk 0:02:55]} 7. bxa6 {[%clk 0:02:16]}  d5 {[%clk 0:02:55]} 8. Bg5 {[%clk 0:02:12]}  Bxa6 {[%clk 0:02:52]} 9. e3 {[%clk 0:01:55]}  Bxf1 {[%clk 0:02:49]} 10. Kxf1 {[%clk 0:01:55]}  Be7 {[%clk 0:02:49]} 11. Nc3 {[%clk 0:01:47]}  O-O {[%clk 0:02:48]} 12. g3 {[%clk 0:01:37]}  Nc6 {[%clk 0:02:48]} 13. Kg2 {[%clk 0:01:36]}  d4 {[%clk 0:02:42]} 14. exd4 {[%clk 0:01:22]}  cxd4 {[%clk 0:02:42]} 15. Nb5 {[%clk 0:01:22]}  e5 {[%clk 0:02:34]} 16. Re1 {[%clk 0:01:21]}  Qd5 {[%clk 0:02:03]} 17. Qb3 {[%clk 0:01:08]}  Qxb3 {[%clk 0:02:02]} 18. axb3 {[%clk 0:01:07]}  Rxa1 {[%clk 0:02:02]} 19. Rxa1 {[%clk 0:01:07]}  Rb8 {[%clk 0:02:03]} 20. Na7 {[%clk 0:00:52]}  Nb4 {[%clk 0:01:15]} 21. Nxe5 {[%clk 0:00:46]}  Ra8 {[%clk 0:01:15]} 22. Ra4 {[%clk 0:00:33]}  d3 {[%clk 0:00:53]} 23. Nac6 {[%clk 0:00:23]}  Rxa4 {[%clk 0:00:35]} 24. bxa4 {[%clk 0:00:20]}  Nxc6 {[%clk 0:00:33]} 25. Nxc6 {[%clk 0:00:21]}  Bc5 {[%clk 0:00:30]} 26. Kf1 {[%clk 0:00:15]}  Ne4 {[%clk 0:00:31]} 27. Be3 {[%clk 0:00:10]}  d2 {[%clk 0:00:17]} 28. Ke2 {[%clk 0:00:09]}  Kf7 {[%clk 0:00:14]} 29. Bxc5 {[%clk 0:00:05]}  Nxc5 {[%clk 0:00:15]} 30. a5 {[%clk 0:00:05]}  Ke6 {[%clk 0:00:14]} 31. b4 {[%clk 0:00:06]}  Ne4 {[%clk 0:00:12]} 32. a6 {[%clk 0:00:05]}  Nxf2 {[%clk 0:00:11]} 33. Kxd2 {[%clk 0:00:04]}  Ne4+ {[%clk 0:00:11]} 34. Ke3 {[%clk 0:00:04]}  Nc3 {[%clk 0:00:11]} 35. a7 {[%clk 0:00:04]}  Nd5+ {[%clk 0:00:11]} 36. Kd4 {[%clk 0:00:04]}  Nc7 {[%clk 0:00:11]} 37. Kc5 {[%clk 0:00:05]}  Kd7 {[%clk 0:00:12]} 38. b5 {[%clk 0:00:05]}  Kc8 {[%clk 0:00:11]} 39. b6 {[%clk 0:00:05]}  Na8 {[%clk 0:00:10]} 40. Na5 {[%clk 0:00:05]} 1-0


[Site "https://www.chess.com"]